bitfinex-derivatives/quotes_BNBF0:USTF0_20250221
["timestamp","ask_amount","ask_price","bid_price","bid_amount"]
[1740121287764,1.62936682,654.95,653.69,2.13824534]
[1740121287965,1.62936682,654.95,653.7,2.13824534]
[1740121288162,1.62936682,654.95,653.71,2.13824534]
[1740121288362,1.62936682,654.95,653.72,2.13824534]
[1740121288563,1.62936682,654.95,653.73,2.13824534]
[1740121288768,1.62936682,654.95,653.74,2.13824534]
[1740121289062,1.62936682,654.95,653.75,2.13824534]
[1740121289268,1.62936682,654.95,653.85,1.13987848]
[1740121289568,1.62936682,654.95,653.86,2.13824534]
[1740121289869,1.62936682,654.95,653.87,2.13824534]
[1740121290071,1.62936682,654.95,653.88,2.13824534]
[1740121290263,1.62936682,654.95,653.89,2.13824534]
[1740121290468,1.62936682,654.95,653.9,2.13824534]
[1740121290668,1.62936682,654.95,653.91,2.13824534]
[1740121290968,1.62936682,654.95,653.92,2.13824534]
[1740121291168,1.62936682,654.95,653.93,2.13824534]
[1740121291469,1.62936682,654.95,653.94,5.12097308]
[1740121291669,1.62936682,654.95,653.95,2.13824534]
[1740121291868,1.62936682,654.95,653.96,2.13824534]
[1740121292069,1.62936682,654.95,653.97,2.13824534]
[1740121292269,1.62936682,654.95,653.98,2.13824534]
[1740121292571,1.62936682,654.95,653.99,2.13824534]
[1740121292770,1.62936682,654.95,654.0,2.13824534]
[1740121292972,1.62936682,654.95,654.01,2.13824534]
[1740121293173,1.62936682,654.95,654.02,2.13824534]
[1740121293371,1.62936682,654.95,654.03,2.13824534]
[1740121293667,1.62936682,654.95,654.04,2.13824534]
[1740121293873,1.62936682,654.95,654.05,2.13824534]
[1740121294073,1.62936682,654.95,654.06,2.13824534]
[1740121294271,1.62936682,654.95,654.07,2.13824534]
[1740121294469,1.62936682,654.95,654.08,2.13824534]
[1740121294668,1.62936682,654.95,654.09,2.13824534]
[1740121294973,1.62936682,654.95,654.09,2.98272774]
[1740121296675,1.62936682,654.95,654.1,2.98272774]
[1740121297075,0.30536682,654.95,654.1,2.98272774]
[1740121297875,0.30536682,654.95,654.11,2.13258587]
[1740121298077,0.30536682,654.95,654.12,2.13258587]
[1740121298276,0.30536682,654.95,654.13,2.13258587]
[1740121298576,0.30536682,654.95,654.14,2.13258587]
[1740121298776,0.30536682,654.95,654.11,2.98272774]
[1740121298977,0.30536682,654.95,654.12,2.13226762]
[1740121299178,0.30536682,654.95,654.13,2.13226762]
[1740121299375,0.30536682,654.95,654.12,2.98272774]
[1740121299572,0.30536682,654.95,654.13,2.13204038]
[1740121299775,0.30536682,654.95,654.12,2.98272774]
[1740121299972,0.30536682,654.95,654.13,2.13207816]
[1740121300175,0.30536682,654.95,654.14,2.13207816]
[1740121300377,0.30536682,654.95,654.15,2.98272774]
[1740121301378,0.30536682,654.95,654.16,2.1316976]
[1740121301574,0.30536682,654.95,654.17,2.1316976]
[1740121301878,0.30536682,654.95,654.18,2.1316976]
[1740121302080,0.30536682,654.95,654.15,2.98272774]
[1740121302373,0.30536682,654.95,654.16,2.13197098]
[1740121302579,0.30536682,654.95,654.17,2.13197098]
[1740121302776,0.30536682,654.95,654.16,2.98272774]
[1740121302979,0.30536682,654.95,654.17,2.13188956]
[1740121303175,0.30536682,654.95,654.18,2.13193793]
[1740121303373,0.30536682,654.95,654.19,2.13193793]
[1740121303575,0.30536682,654.95,654.2,2.13193793]
[1740121303773,0.30536682,654.95,654.16,2.98272774]
[1740121303975,0.30536682,654.95,654.21,2.98272774]
[1740121304178,0.30536682,654.95,654.22,2.1315458]
[1740121304373,0.30536682,654.95,654.23,2.1315458]
[1740121304572,0.30536682,654.95,654.21,2.98272774]
[1740121304573,0.30536682,654.95,654.24,2.1315458]
[1740121304879,0.30536682,654.95,654.25,2.1315458]
[1740121305072,0.30536682,654.95,654.26,2.1315458]
[1740121305274,0.30536682,654.95,654.27,2.1315458]
[1740121305477,0.30536682,654.95,654.28,2.1315458]
[1740121305678,0.30536682,654.95,654.29,2.1315458]
[1740121305878,0.30536682,654.95,654.3,5.11427354]
[1740121306078,0.30536682,654.95,654.3,2.98272774]
[1740121308078,0.30536682,654.95,654.31,2.98272774]
[1740121309682,0.30536682,654.95,653.84,1.13987848]
[1740121309879,0.30536682,654.95,653.85,5.10129413]
[1740121310176,0.30536682,654.95,653.86,2.12977028]
[1740121310378,0.30536682,654.95,653.87,2.12977028]
[1740121310577,0.30536682,654.95,653.88,2.12977028]
[1740121310773,0.30536682,654.95,653.85,2.97152385]
[1740121310976,0.30536682,654.95,653.86,2.12983704]
[1740121311274,0.30536682,654.95,653.87,2.12983704]
[1740121311474,0.30536682,654.95,653.88,5.10136089]
[1740121311678,0.30536682,654.95,653.88,2.97152385]
[1740121312181,0.30536682,654.95,653.89,2.12952865]
[1740121312377,0.30536682,654.95,653.88,2.97152385]
[1740121312578,0.30536682,654.95,653.89,2.12922086]
[1740121312779,0.30536682,654.95,653.88,2.97152385]
[1740121312975,0.30536682,654.95,653.89,2.12910004]
[1740121313276,0.30536682,654.95,653.88,2.97152385]
[1740121313486,0.30536682,654.95,653.89,2.12904878]
[1740121313782,0.30536682,654.95,653.89,2.97152385]
[1740121315385,0.30536682,654.95,653.9,2.97152385]
[1740121316986,0.30536682,654.95,653.74,1.13987848]
[1740121317185,0.30536682,654.95,653.75,2.12878457]
[1740121317387,0.30536682,654.95,653.76,2.12878457]
[1740121317688,0.30536682,654.95,653.77,5.09906786]
[1740121317887,0.30536682,654.95,653.78,2.12878457]
[1740121318187,0.30536682,654.95,653.79,2.12878457]
[1740121318488,0.30536682,654.95,653.8,2.12878457]
[1740121318787,0.30536682,654.95,653.81,2.12878457]
[1740121318985,0.30536682,654.95,653.82,2.12878457]
[1740121319184,0.30536682,654.95,653.83,2.12878457]
[1740121319386,0.30536682,654.95,653.84,2.12878457]
[1740121319586,0.30536682,654.95,653.81,2.97028329]
[1740121319887,0.30536682,654.95,653.82,2.12884038]
[1740121320090,0.30536682,654.95,653.83,2.12884038]
[1740121320289,0.30536682,654.95,653.84,2.12884038]
[1740121320589,0.30536682,654.95,653.85,2.12884038]
[1740121320890,0.30536682,654.95,653.86,2.12884038]
[1740121321092,0.30536682,654.95,653.87,2.12884038]
[1740121321290,0.30536682,654.95,653.84,2.97028329]
[1740121321291,0.30536682,654.95,653.88,2.12884038]
[1740121321590,0.30536682,654.95,653.89,2.12884038]
[1740121321790,0.30536682,654.95,653.9,2.12884038]
[1740121321996,0.30536682,654.95,653.93,1.13987848]
[1740121322289,0.30536682,654.95,653.94,2.12884038]
[1740121322489,0.30536682,654.95,653.95,2.12884038]
[1740121322690,0.30536682,654.95,653.96,5.09912367]
[1740121322991,0.30536682,654.95,653.97,2.12884038]
[1740121323188,0.30536682,654.95,653.98,2.12884038]
[1740121323390,0.30536682,654.95,653.99,2.12884038]
[1740121323591,0.30536682,654.95,654.0,2.12884038]
[1740121323784,0.30536682,654.95,654.01,2.12884038]
[1740121323985,0.30536682,654.95,653.96,2.97028329]
[1740121323986,0.30536682,654.95,654.02,2.12884038]
[1740121324284,0.30536682,654.95,654.03,5.09912367]
[1740121324592,0.30536682,654.95,654.04,2.12884038]
[1740121324793,0.30536682,654.95,654.05,2.12884038]
[1740121325090,0.30536682,654.95,654.06,2.12884038]
[1740121325290,0.30536682,654.95,654.07,2.12884038]
[1740121325491,0.30536682,654.95,654.08,2.12884038]
[1740121325689,0.30536682,654.95,654.09,2.12884038]
[1740121325887,0.30536682,654.95,654.1,5.09912367]
[1740121326190,0.30536682,654.95,654.1,2.97028329]
[1740121326392,0.30536682,654.95,654.11,2.1312211]
[1740121326592,0.30536682,654.95,654.1,2.97028329]
[1740121327590,0.30536682,654.95,654.11,2.97028329]
[1740121328191,0.30536682,654.95,654.12,2.13158717]
[1740121328392,0.30536682,654.95,654.13,2.13158717]
[1740121328590,0.30536682,654.95,654.14,2.13158717]
[1740121328792,0.30536682,654.95,654.15,2.13198782]
[1740121328991,0.30536682,654.95,654.16,2.97028329]
[1740121330593,0.30536682,654.95,653.98,1.13987848]
[1740121330793,0.30536682,654.95,653.99,2.13279414]
[1740121331093,0.30536682,654.95,654.0,2.13279414]
[1740121331289,0.30536682,654.95,654.01,5.10888774]
[1740121331493,0.30536682,654.95,654.02,2.13279414]
[1740121331694,0.30536682,654.95,654.03,2.13279414]
[1740121331895,0.30536682,654.95,654.04,2.13279414]
[1740121332096,0.30536682,654.95,654.05,5.10888774]
[1740121332403,0.30536682,654.95,654.06,2.13279414]
[1740121332588,0.30536682,654.95,654.07,2.13279414]
[1740121332790,0.30536682,654.95,654.08,2.13279414]
[1740121332990,0.30536682,654.95,654.05,2.9760936]
[1740121333193,0.30536682,654.95,654.06,2.13329708]
[1740121333390,0.30536682,654.95,654.05,2.9760936]
[1740121333590,0.30536682,654.95,654.06,2.13366385]
[1740121333791,0.30536682,654.95,654.07,2.133641]
[1740121333989,0.30536682,654.95,654.08,2.133641]
[1740121334193,0.30536682,654.95,654.09,2.133641]
[1740121334389,0.30536682,654.95,654.1,2.133641]
[1740121334696,0.30536682,654.95,654.11,2.133641]
[1740121334890,0.30536682,654.95,654.07,2.9760936]
[1740121335195,0.30536682,654.95,654.08,5.1102151]
[1740121335394,0.30536682,654.95,654.09,2.1341215]
[1740121335592,0.30536682,654.95,654.1,2.1341215]
[1740121335792,0.30536682,654.95,654.08,2.9760936]
[1740121336291,0.30536682,654.95,654.09,2.13484913]
[1740121336496,0.30536682,654.95,654.08,2.9760936]
[1740121336697,0.30536682,654.95,653.9,1.13987848]
[1740121336895,0.30536682,654.95,653.91,2.13524898]
[1740121337093,0.30536682,654.95,653.92,2.13524898]
[1740121337294,0.30536682,654.95,653.93,2.13524898]
[1740121337494,0.30536682,654.95,653.94,2.13524898]
[1740121337696,0.30536682,654.95,653.95,2.13524898]
[1740121337891,0.30536682,654.95,653.96,2.13524898]
[1740121338096,0.30536682,654.95,653.97,2.13524898]
[1740121338290,0.30536682,654.95,653.98,2.13524898]
[1740121338490,0.30536682,654.95,653.99,2.13524898]
[1740121338691,0.30536682,654.95,654.0,2.13524898]
[1740121338989,0.30536682,654.95,654.01,2.13524898]
[1740121339190,0.30536682,654.95,654.02,2.13524898]
[1740121339396,0.30536682,654.95,654.03,2.13524898]
[1740121339594,0.30536682,654.95,654.04,2.13524898]
[1740121339797,0.30536682,654.95,653.99,2.97909002]
[1740121339998,0.30536682,654.95,654.0,2.13578977]
[1740121340192,0.30536682,654.95,654.01,2.13578977]
[1740121340396,0.30536682,654.95,654.02,2.1359621]
[1740121340590,0.30536682,654.95,654.03,2.1359621]
[1740121340895,0.30536682,654.95,654.0,2.97909002]
[1740121341095,0.30536682,654.95,654.01,2.13578823]
[1740121341297,0.30536682,654.95,654.0,2.97909002]
[1740121341298,0.30536682,654.95,654.02,2.13578823]
[1740121341492,0.30536682,654.95,654.03,2.13578823]
[1740121341692,0.30536682,654.95,654.03,2.97909002]
[1740121341894,0.30536682,654.95,654.04,2.13596191]
[1740121342094,0.30536682,654.95,654.05,2.13596191]
[1740121342296,0.30536682,654.95,654.06,2.13596191]
[1740121342493,0.30536682,654.95,654.07,2.13596191]
[1740121342699,0.30536682,654.95,654.08,2.13596191]
[1740121342901,0.30536682,654.95,654.03,2.97909002]
[1740121343098,0.30536682,654.95,654.04,2.13626874]
[1740121343299,0.30536682,654.95,654.05,2.13626874]
[1740121343502,0.30536682,654.95,654.06,5.11535876]
[1740121343705,0.30536682,654.95,654.06,2.97909002]
[1740121344004,0.30536682,654.95,654.07,2.13613406]
[1740121344308,0.30536682,654.95,654.06,2.97909002]
[1740121344809,0.30536682,654.95,653.68,1.13987848]
[1740121345108,0.30536682,654.95,653.69,2.13690285]
[1740121345308,0.30536682,654.95,653.7,2.13690285]
[1740121345504,0.30536682,654.95,653.71,3.27678133]
[1740121345710,0.30536682,654.95,653.72,2.13690285]
[1740121345909,0.30536682,654.95,653.73,2.13690285]
[1740121346109,0.30536682,654.95,653.74,2.13690285]
[1740121346310,0.30536682,654.95,653.75,2.13690285]
[1740121346510,0.30536682,654.95,653.76,2.13690285]
[1740121346707,0.30536682,654.95,653.77,2.13690285]
[1740121346913,0.30536682,654.95,653.78,2.13690285]
[1740121347213,0.30536682,654.95,653.79,2.13690285]
[1740121347514,0.30536682,654.95,653.8,2.13690285]
[1740121347710,0.30536682,654.95,653.81,2.13690285]
[1740121347908,0.30536682,654.95,653.82,2.13690285]
[1740121348104,0.30536682,654.95,653.83,2.13690285]
[1740121348305,0.30536682,654.95,653.84,5.11760897]
[1740121348610,0.30536682,654.95,653.85,2.13690285]
[1740121348811,0.30536682,654.95,653.86,2.13690285]
[1740121349107,0.30536682,654.95,653.87,2.13690285]
[1740121349308,0.30536682,654.95,653.88,2.13690285]
[1740121349509,0.30536682,654.95,653.89,2.13690285]
[1740121349704,0.30536682,654.95,653.9,2.13690285]
[1740121349911,0.30536682,654.95,653.91,2.13690285]
[1740121350109,0.30536682,654.95,653.92,2.13690285]
[1740121350307,0.30536682,654.95,653.93,2.13690285]
[1740121350512,0.30536682,654.95,653.94,2.13690285]
[1740121350814,0.30536682,654.95,653.95,2.13690285]
[1740121351011,0.30536682,654.95,653.96,2.13690285]
[1740121351315,0.30536682,654.95,653.97,2.13690285]
[1740121351512,0.30536682,654.95,653.98,2.13690285]
[1740121351714,0.30536682,654.95,653.99,5.11760897]
[1740121352014,0.30536682,654.95,654.0,2.13690285]
[1740121352213,0.30536682,654.95,654.01,2.13690285]
[1740121352414,0.30536682,654.95,653.99,2.98070612]
[1740121353117,0.30536682,654.95,653.61,1.13987848]
[1740121353312,0.30536682,654.95,653.62,2.13417306]
[1740121353514,0.30536682,654.95,653.63,5.11150437]
[1740121353713,0.30536682,654.95,653.64,2.13417306]
[1740121353915,0.30536682,654.95,653.65,2.13417306]
[1740121354116,0.30536682,654.95,653.63,2.97733131]
[1740121354117,0.30536682,654.95,653.66,2.13417306]
[1740121354317,0.30536682,654.95,653.67,2.13417306]
[1740121354617,0.30536682,654.95,653.68,2.13417306]
[1740121354816,0.30536682,654.95,653.63,2.97733131]
[1740121355416,0.30536682,654.95,653.51,1.13987848]
[1740121355916,1.69836682,654.95,653.51,1.13987848]
[1740121357620,1.69836682,654.95,653.31,1.13987848]
[1740121360723,1.69836682,654.95,653.38,1.13987848]
[1740121364028,1.69836682,654.95,653.4,1.13987848]
[1740121364630,1.69836682,654.95,653.41,2.13282766]
[1740121364827,1.69836682,654.95,653.42,2.13282766]
[1740121365023,1.69836682,654.95,653.43,2.13282766]
[1740121365226,1.69836682,654.95,653.44,2.13282766]
[1740121365428,1.69836682,654.95,653.45,2.13282766]
[1740121365628,1.69836682,654.95,653.46,2.13282766]
[1740121365928,1.69836682,654.95,653.47,2.13282766]
[1740121366129,1.69836682,654.95,653.48,2.13282766]
[1740121366329,1.69836682,654.95,653.49,2.13282766]
[1740121366529,1.69836682,654.95,653.5,2.13282766]
[1740121366729,1.69836682,654.95,653.43,2.97532804]
[1740121366730,1.69836682,654.95,653.51,5.1081557]
[1740121366931,1.69836682,654.95,653.52,2.13282766]
[1740121367126,1.69836682,654.95,653.53,2.13272474]
[1740121367426,1.69836682,654.95,653.51,2.97532804]
[1740121367626,1.69836682,654.95,653.57,1.13987848]
[1740121368031,1.69836682,654.95,653.58,2.13276693]
[1740121368226,1.69836682,654.95,653.59,2.13276693]
[1740121368431,1.69836682,654.95,653.6,5.10809497]
[1740121368627,1.69836682,654.95,653.61,2.13276693]
[1740121368832,1.69836682,654.95,653.62,2.13276693]
[1740121369025,1.69836682,654.95,653.63,2.13276693]
[1740121369226,1.69836682,654.95,653.64,2.13276693]
[1740121369429,1.69836682,654.95,653.65,2.13276693]
[1740121369629,1.69836682,654.95,653.66,2.13276693]
[1740121369934,1.69836682,654.95,653.67,2.13276693]
[1740121370135,1.69836682,654.95,653.68,2.13276693]
[1740121370332,1.69836682,654.95,653.7,1.13987848]
[1740121370528,1.69836682,654.95,653.71,2.13276693]
[1740121370733,1.69836682,654.95,653.72,2.13276693]
[1740121370934,1.69836682,654.95,653.73,2.13276693]
[1740121371133,1.69836682,654.95,653.74,2.13276693]
[1740121371333,1.69836682,654.95,653.75,2.13276693]
[1740121371633,1.69836682,654.95,653.76,2.13276693]
[1740121371828,1.69836682,654.95,653.77,2.13276693]
[1740121372035,1.69836682,654.95,653.78,2.13276693]
[1740121372233,1.69836682,654.95,653.79,2.13276693]
[1740121372432,1.69836682,654.95,653.8,2.13276693]
[1740121372633,1.69836682,654.95,653.81,2.13276693]
[1740121372835,1.69836682,654.95,653.82,2.13276693]
[1740121373035,1.69836682,654.95,653.83,2.13276693]
[1740121373238,1.14842678,654.92,653.84,2.13276693]
[1740121373438,0.30539013,654.9,653.85,2.13276693]
[1740121373638,0.30539013,654.9,653.86,2.13276693]
[1740121373834,0.30539013,654.9,653.87,2.13276693]
[1740121374030,0.30539013,654.9,653.88,2.13276693]
[1740121374237,0.30539013,654.9,653.89,2.13276693]
[1740121374437,0.30539013,654.9,653.9,2.13276693]
[1740121374632,0.30539013,654.9,653.91,2.13276693]
[1740121374832,0.30539013,654.9,653.92,2.13276693]
[1740121375138,0.30539013,654.9,653.93,5.10809497]
[1740121375337,0.30539013,654.9,653.94,2.13276693]
[1740121375539,0.30539013,654.9,653.95,2.13276693]
[1740121375731,0.30539013,654.9,653.96,2.13276693]
[1740121375936,0.30539013,654.9,653.97,2.13276693]
[1740121376136,0.30539013,654.9,653.98,2.13276693]
[1740121376334,0.30539013,654.9,653.99,2.13276693]
[1740121376536,0.30539013,654.9,653.93,2.97532804]
[1740121376735,0.30539013,654.9,653.94,2.13420912]
[1740121377034,0.30539013,654.9,653.95,2.13420912]
[1740121377235,0.30539013,654.9,653.96,2.13420912]
[1740121377435,0.30539013,654.9,653.97,2.13420912]
[1740121377634,0.30539013,654.9,653.95,2.97532804]
[1740121378339,0.30539013,654.9,653.79,1.13987848]
[1740121378535,0.30539013,654.9,653.8,2.13481647]
[1740121378740,0.30539013,654.9,653.81,2.13481647]
[1740121378936,0.30539013,654.9,653.82,2.13481647]
[1740121379137,0.30539013,654.9,653.81,2.97819247]
[1740121379340,0.30539013,654.9,653.82,2.13524207]
[1740121379537,0.30539013,654.9,653.83,2.13524207]
[1740121379736,0.30539013,654.9,653.84,2.97819247]
[1740121380142,0.30539013,654.9,653.85,2.13486014]
[1740121380341,0.30539013,654.9,653.84,2.97819247]
[1740121380543,0.30539013,654.9,653.85,2.13483036]
[1740121380744,0.30539013,654.9,653.84,2.97819247]
[1740121381243,0.30539013,654.9,653.86,2.97819247]
[1740121382339,0.30539013,654.9,653.87,2.97819247]
[1740121383843,0.30539013,654.9,653.77,1.13987848]
[1740121384044,0.30539013,654.9,653.78,5.11416619]
[1740121384242,0.30539013,654.9,653.79,2.13527533]
[1740121384548,0.30539013,654.9,653.8,2.13527533]
[1740121384747,0.30539013,654.9,653.81,2.13527533]
[1740121385046,0.30539013,654.9,653.82,2.13527533]
[1740121385347,0.30539013,654.9,653.83,2.13527533]
[1740121385540,0.30539013,654.9,653.84,2.13527533]
[1740121385740,0.30539013,654.9,653.85,2.13527533]
[1740121385944,0.30539013,654.9,653.86,2.13527533]
[1740121386142,1.133,654.89,653.87,2.13527533]
[1740121386347,0.30539946,654.88,653.88,2.13527533]
[1740121386551,0.30539946,654.88,653.89,2.13527533]
[1740121386847,0.30539946,654.88,653.85,2.97889086]
[1740121387047,0.30539946,654.88,653.86,5.11550153]
[1740121387252,0.30539946,654.88,653.87,2.13661067]
[1740121387547,0.30539946,654.88,653.88,2.13661067]
[1740121387745,0.30539946,654.88,653.89,2.13661067]
[1740121387944,0.30539946,654.88,653.9,2.13661067]
[1740121388145,0.30539946,654.88,653.91,2.13721989]
[1740121388344,0.30539946,654.88,653.92,2.13721989]
[1740121388542,0.30539946,654.88,653.93,2.13721989]
[1740121388741,0.30539946,654.88,653.92,2.97889086]
[1740121388945,0.30539946,654.88,653.93,2.13759854]
[1740121389147,0.30539946,654.88,653.94,2.13759854]
[1740121389449,0.30539946,654.88,653.95,2.13759854]
[1740121389650,0.30539946,654.88,653.96,2.13759854]
[1740121389948,0.30539946,654.88,653.92,2.97889086]
[1740121389949,0.30539946,654.88,653.97,2.13759854]
[1740121390148,0.30539946,654.88,653.98,2.13759854]
[1740121390349,0.30539946,654.88,653.99,2.13759854]
[1740121390550,0.30539946,654.88,654.0,2.13759854]
[1740121390749,0.30539946,654.88,654.01,2.13759854]
[1740121390950,0.30539946,654.88,654.02,2.13759854]
[1740121391250,0.30539946,654.88,654.03,2.13759854]
[1740121391449,0.30539946,654.88,654.04,2.13759854]
[1740121391649,0.30539946,654.88,654.05,2.13759854]
[1740121391847,0.30539946,654.88,654.06,5.1164894]
[1740121392048,0.30539946,654.88,654.07,2.13759854]
[1740121392244,0.30539946,654.88,654.08,2.13759854]
[1740121392445,0.30539946,654.88,654.09,2.13759854]
[1740121392753,0.30539946,654.88,654.1,2.13759854]
[1740121393055,0.30539946,654.88,654.11,2.13896558]
[1740121393351,0.30539946,654.88,654.12,2.13941702]
[1740121393548,0.30539946,654.88,654.13,2.13941702]
[1740121393751,0.30539946,654.88,654.14,5.11830788]
[1740121393951,0.30539946,654.88,654.15,2.13941702]
[1740121394149,0.30539946,654.88,654.16,2.13941702]
[1740121394345,0.30539946,654.88,654.17,2.13941702]
[1740121394544,0.30539946,654.88,654.18,2.13941702]
[1740121394745,0.30539946,654.88,654.19,2.13941702]
[1740121394950,0.30539946,654.88,654.14,2.97889086]
[1740121395147,0.30539946,654.88,654.15,2.13979374]
[1740121395346,0.30539946,654.88,654.16,2.13979374]
[1740121395651,0.30539946,654.88,654.17,2.13979374]
[1740121395851,0.30539946,654.88,654.18,2.13979374]
[1740121396052,0.30539946,654.88,654.19,2.13979374]
[1740121396353,0.30539946,654.88,654.2,2.13979374]
[1740121396551,0.30539946,654.88,654.16,2.97889086]
[1740121396747,0.30539946,654.88,654.17,2.14048878]
[1740121396952,0.30539946,654.88,654.18,2.97889086]
[1740121397353,1.14842678,654.87,654.18,2.97889086]
[1740121397653,0.30540878,654.86,654.18,2.97889086]
[1740121398146,0.30540878,654.86,653.86,1.13987848]
[1740121398351,0.30540878,654.86,653.87,2.13960168]
[1740121398646,0.30540878,654.86,653.86,1.13987848]
[1740121398647,0.30540878,654.86,653.88,2.13960168]
[1740121398850,0.30540878,654.86,653.89,2.13960168]
[1740121399046,0.30540878,654.86,653.9,2.13960168]
[1740121399247,0.30540878,654.86,653.91,2.13960168]
[1740121399447,0.30540878,654.86,653.92,2.13960168]
[1740121399648,0.30540878,654.86,653.93,2.13960168]
[1740121399852,0.30540878,654.86,653.94,2.13960168]
[1740121400049,0.30540878,654.86,653.95,2.13960168]
[1740121400252,0.30540878,654.86,653.96,2.13960168]
[1740121400554,0.30540878,654.86,653.97,5.12423522]
[1740121400755,0.30540878,654.86,653.98,2.13960168]
[1740121400955,0.30540878,654.86,653.99,2.13960168]
[1740121401159,0.30540878,654.86,654.0,2.13960168]
[1740121401457,0.30540878,654.86,654.01,2.13960168]
[1740121401652,0.30540878,654.86,654.02,2.13960168]
[1740121401856,0.30540878,654.86,654.03,2.13960168]
[1740121402049,0.30540878,654.86,654.04,2.13960168]
[1740121402254,0.30540878,654.86,654.05,2.13960168]
[1740121402457,0.30540878,654.86,654.06,2.13960168]
[1740121402652,0.30540878,654.86,654.07,2.13960168]
[1740121402956,0.30540878,654.86,654.08,2.13960168]
[1740121403150,0.30540878,654.86,654.09,2.13960168]
[1740121403354,0.30540878,654.86,654.08,2.98463354]
[1740121403556,0.30540878,654.86,654.09,2.13791703]
[1740121403756,0.30540878,654.86,654.08,2.98463354]
[1740121403958,0.30540878,654.86,654.09,2.1378656]
[1740121404154,0.30540878,654.86,654.08,2.98463354]
[1740121404958,0.30540878,654.86,654.09,2.98463354]
[1740121406254,0.30540878,654.86,653.83,1.13987848]
[1740121406455,0.30540878,654.86,653.84,2.13731333]
[1740121406659,0.30540878,654.86,653.85,2.13731333]
[1740121406857,0.30540878,654.86,653.86,5.11912023]
[1740121407059,0.30540878,654.86,653.87,2.13731333]
[1740121407261,0.30540878,654.86,653.88,2.13731333]
[1740121407561,0.30540878,654.86,653.89,2.13731333]
[1740121407760,0.30540878,654.86,653.9,2.13731333]
[1740121407961,0.30540878,654.86,653.91,2.13731333]
[1740121408162,0.30540878,654.86,653.92,2.13731333]
[1740121408365,0.30540878,654.86,653.93,5.11912023]
[1740121408566,0.30540878,654.86,653.94,2.13731333]
[1740121408766,0.30540878,654.86,653.95,2.13731333]
[1740121408966,0.30540878,654.86,653.96,2.13731333]
[1740121409165,0.30540878,654.86,653.97,2.13731333]
[1740121409365,0.30540878,654.86,653.98,2.13731333]
[1740121409565,0.30540878,654.86,653.99,2.13731333]
[1740121409767,0.30540878,654.86,654.0,2.13731333]
[1740121409966,0.30540878,654.86,653.93,2.9818069]
[1740121409967,0.30540878,654.86,654.01,2.13731333]
[1740121410167,0.30540878,654.86,654.02,2.13731333]
[1740121410366,0.30540878,654.86,654.03,2.13731333]
[1740121410566,0.30540878,654.86,654.04,5.11912023]
[1740121410868,0.30540878,654.86,654.05,2.13731333]
[1740121411068,0.30540878,654.86,654.06,2.13731333]
[1740121411368,0.30540878,654.86,654.04,2.9818069]
[1740121411369,0.30540878,654.86,654.07,2.13731333]
[1740121411563,0.30540878,654.86,654.08,2.13731333]
[1740121411868,0.30540878,654.86,654.04,2.9818069]
[1740121411869,0.30540878,654.86,654.09,2.13731333]
[1740121412069,0.30540878,654.86,654.1,2.13731333]
[1740121412270,0.30540878,654.86,654.04,2.9818069]
[1740121412663,0.30540878,654.86,653.86,1.13987848]
[1740121412867,0.30540878,654.86,653.87,2.13666181]
[1740121413164,0.30540878,654.86,653.88,2.13666181]
[1740121413364,0.30540878,654.86,653.89,2.13666181]
[1740121413567,0.30540878,654.86,653.9,2.13666181]
[1740121413768,0.30540878,654.86,653.91,2.13666181]
[1740121413968,0.30540878,654.86,653.92,2.13666181]
[1740121414166,0.30540878,654.86,653.93,2.13666181]
[1740121414368,0.30540878,654.86,653.94,2.13666181]
[1740121414565,0.30540878,654.86,653.95,2.13666181]
[1740121414765,0.30540878,654.86,653.96,5.11756945]
[1740121414965,0.30540878,654.86,653.97,2.13666181]
[1740121415164,0.30540878,654.86,653.98,2.13666181]
[1740121415368,0.30540878,654.86,653.99,2.13666181]
[1740121415671,0.30540878,654.86,654.0,2.13666181]
[1740121415870,0.30540878,654.86,654.01,2.13666181]
[1740121416068,0.30540878,654.86,654.02,2.13666181]
[1740121416374,0.30540878,654.86,654.02,2.98090764]
[1740121416672,0.30540878,654.86,654.03,2.13493707]
[1740121416973,0.30540878,654.86,654.04,2.13493707]
[1740121417172,0.30540878,654.86,654.05,2.13493707]
[1740121417368,0.30540878,654.86,654.06,2.13493707]
[1740121417567,0.30540878,654.86,654.07,2.13493707]
[1740121417769,0.30540878,654.86,654.06,2.98090764]
[1740121417770,0.30540878,654.86,654.08,2.13493707]
[1740121417966,0.30540878,654.86,654.09,2.13493707]
[1740121418166,0.30540878,654.86,654.06,2.98090764]
[1740121418167,0.30540878,654.86,654.1,2.13493707]
[1740121418369,0.30540878,654.86,654.11,2.13493707]
[1740121418568,0.30540878,654.86,654.12,2.13493707]
[1740121418769,0.30540878,654.86,654.13,2.13493707]
[1740121418970,0.30540878,654.86,654.14,2.13493707]
[1740121419172,0.30540878,654.86,654.15,2.13493707]
[1740121419372,0.30540878,654.86,654.14,2.98090764]
[1740121419672,0.30540878,654.86,654.15,2.13309576]
[1740121419869,0.30540878,654.86,654.16,2.13306305]
[1740121420067,0.30540878,654.86,654.14,2.98090764]
[1740121420370,0.30540878,654.86,654.17,2.98090764]
[1740121421474,0.30540878,654.86,653.79,1.13987848]
[1740121421674,0.30540878,654.86,653.8,2.13196445]